bitfinex-derivatives/quotes_BTCF0:USTF0_20240923
["timestamp","ask_amount","ask_price","bid_price","bid_amount"]
[1727114078643,0.11116595,63351.0,63350.0,0.189922]
[1727114078644,0.078921,63351.0,63350.0,0.189922]
[1727114078842,0.078921,63351.0,63350.0,0.190922]
[1727114079957,0.03943321,63351.0,63350.0,0.190922]
[1727114080343,0.03943321,63351.0,63350.0,0.189922]
[1727114080547,0.03943321,63351.0,63350.0,0.190922]
[1727114081154,0.03943321,63351.0,63350.0,0.25252569]
[1727114081658,0.03943321,63351.0,63350.0,0.188922]
[1727114082249,0.03943321,63351.0,63350.0,0.25154063]
[1727114083155,0.03943321,63351.0,63350.0,0.188922]
[1727114086852,0.03943321,63351.0,63350.0,0.078922]
[1727114087041,0.07217525,63351.0,63350.0,0.078922]
[1727114088554,0.11082607,63351.0,63350.0,0.078922]
[1727114088749,0.07217525,63351.0,63350.0,0.078922]
[1727114088957,0.11082607,63351.0,63350.0,0.078922]
[1727114090345,0.11082607,63351.0,63347.0,0.11]
[1727114090346,0.078931,63345.0,63344.0,0.078929]
[1727114090551,0.22185635,63345.0,63344.0,0.078929]
[1727114090949,0.15032826,63345.0,63344.0,0.078929]
[1727114091554,0.15032826,63345.0,63344.0,0.079929]
[1727114092057,0.15007138,63345.0,63344.0,0.079929]
[1727114092251,0.15007138,63345.0,63344.0,0.083929]
[1727114093963,0.15007138,63345.0,63344.0,0.082929]
[1727114094560,0.15007138,63345.0,63344.0,0.081929]
[1727114095153,0.078931,63345.0,63344.0,0.081929]
[1727114096952,0.078922,63350.0,63349.0,0.078922]
[1727114097155,0.078922,63350.0,63349.0,0.188922]
[1727114098261,0.078919,63353.0,63352.0,0.078917]
[1727114098465,0.078919,63353.0,63352.0,0.188917]
[1727114098759,0.078919,63353.0,63352.0,0.25162162]
[1727114098961,0.078919,63353.0,63352.0,0.188917]
[1727114099270,0.078919,63353.0,63352.0,0.25162162]
[1727114099853,0.078919,63353.0,63352.0,0.188917]
[1727114100771,0.078919,63353.0,63352.0,0.189917]
[1727114101957,0.157839,63353.0,63352.0,0.001]
[1727114102158,0.1906163,63353.0,63352.0,0.001]
[1727114102357,0.3006163,63353.0,63352.0,0.001]
[1727114103355,0.41085526,63353.0,63352.0,0.001]
[1727114103563,0.3006163,63353.0,63352.0,0.001]
[1727114104365,0.41085526,63353.0,63352.0,0.001]
[1727114104873,0.41103176,63353.0,63352.0,0.001]
[1727114105061,0.41108087,63353.0,63352.0,0.001]
[1727114105262,0.30066541,63353.0,63352.0,0.001]
[1727114105456,0.22174541,63353.0,63352.0,0.07992]
[1727114105657,0.33216787,63353.0,63352.0,0.07992]
[1727114106463,0.41108787,63353.0,63352.0,0.07992]
[1727114106670,0.33216787,63353.0,63352.0,0.07992]
[1727114107263,0.41108587,63353.0,63352.0,0.07992]
[1727114107463,0.33216687,63353.0,63352.0,0.07992]
[1727114108168,0.41108487,63353.0,63352.0,0.001]
[1727114108462,0.33216687,63353.0,63352.0,0.001]
[1727114108667,0.188918,63353.0,63352.0,0.001]
[1727114108964,0.30069822,63353.0,63352.0,0.001]
[1727114109167,0.26961622,63353.0,63352.0,0.001]
[1727114109382,0.30069822,63353.0,63352.0,0.001]
[1727114110965,0.41115484,63353.0,63352.0,0.001]
[1727114111669,0.45721062,63353.0,63352.0,0.001]
[1727114112254,0.37829262,63353.0,63352.0,0.001]
[1727114115973,0.267836,63353.0,63352.0,0.001]
[1727114117667,0.15030812,63353.0,63352.0,0.001]
[1727114117877,0.26030812,63353.0,63352.0,0.001]
[1727114119370,0.26030812,63353.0,63352.0,0.07992]
[1727114121279,0.33922612,63353.0,63352.0,0.07992]
[1727114121770,0.26027483,63353.0,63352.0,0.07992]
[1727114122769,0.33919283,63353.0,63352.0,0.001]
[1727114122966,0.38764282,63353.0,63352.0,0.001]
[1727114123172,0.30872482,63353.0,63352.0,0.001]
[1727114123373,0.38764282,63353.0,63352.0,0.001]
[1727114124367,0.38764286,63353.0,63352.0,0.001]
[1727114124564,0.60862131,63353.0,63352.0,0.001]
[1727114124768,0.60862131,63353.0,63337.0,0.078938]
[1727114124769,0.078927,63346.0,63337.0,0.078938]
[1727114124976,0.078937,63338.0,63337.0,0.078938]
[1727114125184,0.58243997,63338.0,63337.0,0.078938]
[1727114125680,0.51023979,63338.0,63337.0,0.18719433]
[1727114126175,0.51023979,63338.0,63337.0,0.19819433]
[1727114126366,0.51023979,63338.0,63337.0,0.1981867]
[1727114126769,0.51023979,63338.0,63337.0,0.2061867]
[1727114127280,0.51023979,63338.0,63337.0,0.17636105]
[1727114128375,0.51023979,63338.0,63337.0,0.088938]
[1727114128576,0.51223979,63338.0,63337.0,0.080938]
[1727114128869,0.51223979,63338.0,63337.0,0.078938]
[1727114129277,0.51023979,63338.0,63337.0,0.078938]
[1727114129578,0.51223979,63338.0,63337.0,0.078938]
[1727114130080,0.40023979,63338.0,63337.0,0.078938]
[1727114130278,0.40123979,63338.0,63337.0,0.078938]
[1727114130672,0.40123979,63338.0,63337.0,0.15736105]
[1727114130885,0.40123979,63338.0,63337.0,0.15936105]
[1727114131087,0.001,63338.0,63337.0,0.15936105]
[1727114131272,0.001,63338.0,63337.0,0.18882535]
[1727114131678,0.078935,63340.0,63339.0,0.078932]
[1727114131978,0.078935,63340.0,63339.0,0.29681935]
[1727114133266,0.079935,63340.0,63339.0,0.29681935]
[1727114134381,0.079935,63340.0,63339.0,0.29781935]
[1727114135781,0.001,63340.0,63339.0,0.29781935]
[1727114136982,0.079935,63340.0,63339.0,0.29781935]
[1727114137874,0.079935,63340.0,63339.0,0.30081935]
[1727114138282,0.078935,63340.0,63339.0,0.30281935]
[1727114139082,0.078935,63340.0,63339.0,0.30081935]
[1727114139290,0.078935,63340.0,63339.0,0.30181935]
[1727114140090,0.078932,63342.0,63341.0,0.078933]
[1727114140389,0.078932,63342.0,63341.0,0.18682035]
[1727114140773,0.078932,63342.0,63341.0,0.18667439]
[1727114141389,0.078932,63342.0,63341.0,0.18867439]
[1727114141593,0.079932,63342.0,63341.0,0.18867439]
[1727114145792,0.079932,63342.0,63341.0,0.18864446]
[1727114147888,0.079932,63342.0,63341.0,0.080933]
[1727114152388,0.001,63342.0,63341.0,0.080933]
[1727114153099,0.079932,63342.0,63341.0,0.080933]
[1727114155798,0.079932,63342.0,63341.0,0.18866735]
[1727114160499,0.001,63342.0,63341.0,0.1887689]
[1727114160696,0.001,63342.0,63341.0,0.3466349]
[1727114160998,0.0037,63349.0,63348.0,0.078925]
[1727114161198,0.078919,63353.0,63352.0,0.07892]
[1727114162600,0.078919,63353.0,63352.0,0.07992]
[1727114163800,0.078915,63356.0,63355.0,0.078913]
[1727114164297,0.188915,63356.0,63355.0,0.078913]
[1727114165096,0.188915,63356.0,63355.0,0.079913]
[1727114165295,0.188915,63356.0,63355.0,0.080913]
[1727114168497,0.188915,63356.0,63355.0,0.14359542]
[1727114168691,0.188915,63356.0,63355.0,0.080913]
[1727114168895,0.188915,63356.0,63355.0,0.14359427]
[1727114169600,0.439712,63359.0,63358.0,0.078912]
[1727114169904,0.549712,63359.0,63358.0,0.078912]
[1727114170306,0.078912,63358.0,63357.0,0.14158452]
[1727114170497,0.078912,63358.0,63357.0,0.078913]
[1727114170690,0.157824,63358.0,63357.0,0.078913]
[1727114171004,0.12088514,63358.0,63355.0,0.001]
[1727114171304,0.12088514,63358.0,63348.0,0.0074]
[1727114171305,0.157846,63349.0,63348.0,0.0074]
[1727114171506,0.078927,63346.0,63345.0,0.00236788]
[1727114171697,0.30981214,63346.0,63345.0,0.00236788]
[1727114171894,0.45167836,63346.0,63345.0,0.00236788]
[1727114173109,0.45098215,63346.0,63345.0,0.00236788]
[1727114173804,0.30911593,63346.0,63345.0,0.00236788]
[1727114174498,0.38804293,63346.0,63345.0,0.00236788]
[1727114174703,0.38793949,63346.0,63345.0,0.00236788]
[1727114174891,0.74873949,63346.0,63345.0,0.00236788]
[1727114175093,0.078936,63339.0,63338.0,0.0037]
[1727114175306,0.18163281,63339.0,63334.0,0.3608]
[1727114175521,0.11,63336.0,63334.0,0.3608]
[1727114175810,0.38668956,63336.0,63335.0,0.126939]
[1727114176198,0.26057281,63336.0,63335.0,0.126939]
[1727114177010,0.26057281,63336.0,63335.0,0.078939]
[1727114177195,0.26057281,63336.0,63335.0,0.083939]
[1727114177707,0.26037328,63336.0,63335.0,0.091939]
[1727114178003,0.07894,63336.0,63335.0,0.19960134]
[1727114178207,0.18894,63336.0,63335.0,0.19960134]
[1727114179203,0.26788,63336.0,63335.0,0.09133469]
[1727114179702,0.18894,63336.0,63335.0,0.013]
[1727114179908,0.18894,63336.0,63335.0,0.09133469]
[1727114180228,0.18894,63336.0,63335.0,0.12046718]
[1727114180594,0.18894,63336.0,63335.0,0.19940818]
[1727114181211,0.18894,63336.0,63335.0,0.27773419]
[1727114182110,0.18894,63336.0,63335.0,0.19940818]
[1727114182314,0.18894,63336.0,63335.0,0.27774378]
[1727114182608,0.18894,63336.0,63335.0,0.27764887]
[1727114183212,0.12611675,63337.0,63336.0,0.07894]
[1727114183406,0.12611675,63337.0,63336.0,0.15727646]
[1727114183905,0.20505475,63337.0,63336.0,0.15727646]
[1727114184101,0.20505475,63337.0,63336.0,0.07894]
[1727114184302,0.20505475,63337.0,63336.0,0.08294]
[1727114185212,0.20505475,63337.0,63336.0,0.08994]
[1727114187104,0.078938,63337.0,63336.0,0.08994]
[1727114194113,0.188938,63337.0,63336.0,0.08994]
[1727114196021,0.078936,63339.0,63338.0,0.078936]
[1727114196717,0.439732,63342.0,63341.0,0.078933]
[1727114196917,0.07893,63344.0,63343.0,0.078927]
[1727114201026,0.07893,63344.0,63343.0,0.18619102]
[1727114201921,0.07893,63344.0,63343.0,0.18620344]
[1727114206729,0.157861,63344.0,63343.0,0.18620344]
[1727114207431,0.07893,63344.0,63343.0,0.18620344]
[1727114208023,0.07893,63344.0,63343.0,0.078927]
[1727114211728,0.07893,63344.0,63337.0,0.086338]
[1727114211729,0.078931,63343.0,63338.0,0.078934]
[1727114211923,0.078941,63336.0,63335.0,0.07894]
[1727114212126,0.188941,63336.0,63335.0,0.07894]
[1727114212523,0.188941,63336.0,63335.0,0.10362495]
[1727114212721,0.188941,63336.0,63335.0,0.07894]
[1727114213328,0.078941,63335.0,63333.0,0.3608]
[1727114213522,0.157884,63334.0,63333.0,0.3608]
[1727114213720,0.202884,63334.0,63333.0,0.3608]
[1727114214135,0.29745747,63334.0,63333.0,0.3608]
[1727114214429,0.202884,63334.0,63333.0,0.3608]
[1727114214625,0.197884,63334.0,63333.0,0.3608]
[1727114214822,0.078945,63332.0,63331.0,0.18173488]
[1727114215121,0.078952,63326.0,63325.0,0.0037]
[1727114215330,0.078952,63326.0,63324.0,0.082654]
[1727114215331,0.078953,63325.0,63324.0,0.078954]
[1727114215532,0.071953,63325.0,63324.0,0.078954]
[1727114215719,0.061953,63325.0,63324.0,0.078954]
[1727114216134,0.061953,63325.0,63324.0,0.18691296]
[1727114216338,0.033953,63325.0,63324.0,0.26533532]
[1727114216526,0.033953,63325.0,63324.0,0.18638132]
[1727114217323,0.078955,63324.0,63323.0,0.07842236]
[1727114217530,0.174955,63324.0,63323.0,0.18632908]
[1727114217745,0.170955,63324.0,63323.0,0.18632908]
[1727114218438,0.170955,63324.0,63323.0,0.07842236]
[1727114218630,0.078956,63323.0,63322.0,0.15974766]
[1727114218829,0.111,63324.0,63322.0,0.26762982]
[1727114219135,0.112,63324.0,63322.0,0.15974766]
[1727114220130,0.078956,63323.0,63322.0,0.15974766]
[1727114220530,0.080955,63324.0,63323.0,0.078956]
[1727114220731,0.002,63324.0,63323.0,0.26475851]
[1727114221230,0.001,63324.0,63323.0,0.26475851]
[1727114221428,0.001,63324.0,63323.0,0.15731703]
[1727114221822,0.001,63324.0,63323.0,0.18636464]
[1727114222036,0.002,63324.0,63323.0,0.18636464]
[1727114222525,0.001,63324.0,63323.0,0.26469637]
[1727114222926,0.078952,63326.0,63325.0,0.078953]
[1727114222927,0.04044914,63326.0,63325.0,0.078953]
[1727114223122,0.04044914,63326.0,63325.0,0.188953]
[1727114223332,0.078945,63332.0,63331.0,0.078945]
[1727114224039,0.188945,63332.0,63331.0,0.078945]
[1727114225832,0.190945,63332.0,63331.0,0.078945]
[1727114229243,0.190945,63332.0,63331.0,0.14160171]
[1727114229639,0.190945,63332.0,63331.0,0.078945]
[1727114230030,0.002,63332.0,63331.0,0.078945]
[1727114233944,0.002,63332.0,63331.0,0.15727502]
[1727114234144,0.002,63332.0,63331.0,0.23622102]
[1727114234341,0.002,63332.0,63331.0,0.26474459]
[1727114234945,0.002,63332.0,63331.0,0.26471328]
[1727114235148,0.002,63332.0,63331.0,0.34365928]
[1727114235336,0.002,63332.0,63331.0,1.41733928]
[1727114235948,0.0037,63339.0,63338.0,0.157874]
[1727114236156,0.078932,63342.0,63341.0,0.078933]
[1727114236443,0.078932,63342.0,63341.0,0.14163108]
[1727114237250,0.078932,63342.0,63341.0,0.078933]
[1727114237439,0.080932,63342.0,63341.0,0.078933]
[1727114238746,0.083932,63342.0,63341.0,0.078933]
[1727114243540,0.193932,63342.0,63341.0,0.078933]
[1727114245353,0.25348342,63342.0,63341.0,0.078933]
[1727114246047,0.33241542,63342.0,63341.0,0.078933]
[1727114246253,0.37173413,63342.0,63341.0,0.078933]
[1727114246442,0.37173413,63342.0,63337.0,0.0466]
[1727114246443,0.21387013,63342.0,63337.0,0.0466]
[1727114246751,0.21387013,63342.0,63338.0,0.078937]
[1727114246752,0.078937,63339.0,63338.0,0.078937]
[1727114246956,0.11289324,63339.0,63338.0,0.078937]
[1727114247151,0.13848943,63339.0,63338.0,0.078937]
[1727114247555,0.11289324,63339.0,63338.0,0.078937]
[1727114247777,0.13848943,63339.0,63338.0,0.078937]
[1727114247940,0.21742643,63339.0,63338.0,0.078937]
[1727114248146,0.19173982,63339.0,63338.0,0.078937]
[1727114248349,0.21733589,63339.0,63338.0,0.078937]
[1727114248856,0.24839889,63339.0,63338.0,0.078937]
[1727114249450,0.35869583,63339.0,63338.0,0.078937]
[1727114250050,0.24839889,63339.0,63338.0,0.078937]
[1727114250652,0.35869583,63339.0,63338.0,0.078937]
[1727114252464,0.24839889,63339.0,63338.0,0.078937]
[1727114252963,0.24842569,63339.0,63338.0,0.078937]
[1727114253156,0.188937,63339.0,63338.0,0.1859162]
[1727114257568,0.00236856,63349.0,63338.0,0.31127279]
[1727114257869,0.0037,63348.0,63347.0,0.078926]
[1727114258060,0.078917,63354.0,63353.0,0.078916]
[1727114258260,0.078917,63354.0,63353.0,0.37384751]
[1727114258456,0.078917,63354.0,63353.0,0.3737748]
[1727114258662,0.078917,63354.0,63353.0,0.18523143]
[1727114259466,0.078917,63354.0,63353.0,0.1574094]
[1727114260267,0.1532229,63354.0,63353.0,0.078916]
[1727114260458,0.03958873,63354.0,63353.0,0.188916]
[1727114261359,0.05358873,63354.0,63353.0,0.188916]
[1727114262256,0.05358862,63354.0,63353.0,0.188916]
[1727114263563,0.12249907,63354.0,63353.0,0.188916]
[1727114263763,0.14808769,63354.0,63353.0,0.188916]
[1727114266564,0.05358862,63354.0,63353.0,0.188916]
[1727114267959,0.05358862,63354.0,63353.0,0.267834]
[1727114268164,0.078911,63359.0,63358.0,0.078912]
[1727114268565,0.078911,63359.0,63358.0,0.12598235]
[1727114269663,0.078911,63359.0,63358.0,0.078912]
[1727114269972,0.202911,63359.0,63358.0,0.078912]
[1727114270471,0.215911,63359.0,63358.0,0.079912]
[1727114274575,0.294822,63359.0,63358.0,0.079912]
[1727114280187,0.184822,63359.0,63358.0,0.079912]
[1727114280489,0.294822,63359.0,63358.0,0.079912]
[1727114281279,0.294822,63359.0,63358.0,0.12698235]
[1727114281875,0.294822,63359.0,63358.0,0.12699706]
[1727114282270,0.294822,63359.0,63358.0,0.079912]
[1727114282683,0.215911,63359.0,63358.0,0.079912]
[1727114282883,0.027,63359.0,63358.0,0.61347608]
[1727114283084,0.027,63359.0,63358.0,0.629624]
[1727114284175,0.08777307,63359.0,63358.0,0.629624]
[1727114284371,0.19781576,63359.0,63358.0,0.440712]
[1727114284575,0.35563776,63359.0,63358.0,0.3618]
[1727114284781,0.31752086,63359.0,63358.0,0.001]
[1727114284983,0.39643186,63359.0,63358.0,0.001]
[1727114285180,0.31752086,63359.0,63358.0,0.001]
[1727114285590,0.39643186,63359.0,63358.0,0.001]
[1727114285789,0.44361883,63359.0,63358.0,0.001]
[1727114286200,0.52252983,63359.0,63358.0,0.001]
[1727114286398,0.31752086,63359.0,63358.0,0.001]
[1727114286614,0.39643186,63359.0,63358.0,0.001]
[1727114287491,0.44487655,63359.0,63358.0,0.001]
[1727114288904,0.52378755,63359.0,63358.0,0.001]
[1727114289614,1.59726755,63359.0,63358.0,0.001]
[1727114290206,1.447213,63359.0,63358.0,0.001]
[1727114291300,0.847213,63359.0,63358.0,0.001]
[1727114291901,0.768302,63359.0,63358.0,0.001]
[1727114293013,0.847213,63359.0,63358.0,0.001]
[1727114293208,0.294822,63359.0,63358.0,0.001]
[1727114293513,0.768302,63359.0,63358.0,0.001]
[1727114293705,0.294822,63359.0,63358.0,0.001]
[1727114295098,0.655622,63359.0,63358.0,0.001]
[1727114297611,0.734533,63359.0,63358.0,0.001]
[1727114298206,0.80515134,63359.0,63358.0,0.001]
[1727114298407,0.88406234,63359.0,63358.0,0.001]
[1727114301315,0.80515134,63359.0,63358.0,0.001]
[1727114301500,0.88406234,63359.0,63358.0,0.001]
[1727114303297,1.04168961,63359.0,63358.0,0.001]
[1727114304613,0.157842,63351.0,63350.0,0.0037]
[1727114304808,0.078926,63347.0,63346.0,0.3608]
[1727114305008,0.29937101,63347.0,63346.0,0.46440783]
[1727114305208,0.33430465,63347.0,63346.0,0.69774544]
[1727114305414,0.11,63347.0,63346.0,0.69774544]
[1727114305903,0.11,63347.0,63346.0,0.69774549]
[1727114306103,0.188926,63347.0,63346.0,0.69774549]
[1727114306303,0.189926,63347.0,63346.0,0.69774549]
[1727114306506,0.191926,63347.0,63346.0,0.69774549]
[1727114306899,0.192926,63347.0,63346.0,0.69774549]
[1727114308102,0.194926,63347.0,63346.0,0.69774549]
[1727114308302,0.084926,63347.0,63346.0,0.69774549]
[1727114308504,0.004,63347.0,63346.0,0.6965119]
[1727114308703,0.007,63347.0,63346.0,0.6965119]
[1727114308905,0.005,63347.0,63346.0,0.7754389]
[1727114309105,0.002,63347.0,63346.0,0.7754389]
[1727114309306,0.003,63347.0,63346.0,0.7754389]
[1727114312618,0.003,63347.0,63346.0,0.6965119]
[1727114313006,0.003,63347.0,63346.0,0.67183102]
[1727114313207,0.003,63347.0,63346.0,0.46440618]
[1727114313428,0.02858985,63347.0,63346.0,0.46440618]
[1727114313615,0.02858985,63347.0,63346.0,0.439727]
[1727114313825,0.02858985,63347.0,63346.0,0.10360618]
[1727114314127,0.02858985,63347.0,63346.0,0.46440618]
[1727114315016,0.02858985,63347.0,63346.0,0.54333318]
[1727114316317,0.02858985,63347.0,63346.0,0.518654]
[1727114316525,0.02858985,63347.0,63346.0,0.54333318]
[1727114320333,0.17358938,63348.0,63347.0,0.078926]
[1727114320334,0.0424383,63348.0,63347.0,0.078926]
[1727114320629,0.0424383,63348.0,63347.0,0.33595109]
[1727114322127,0.0454383,63348.0,63347.0,0.33595109]
[1727114322318,0.0474383,63348.0,63347.0,0.33595109]
[1727114322720,0.005,63348.0,63347.0,0.60380309]
[1727114323026,0.0037,63354.0,63353.0,0.078918]
[1727114323235,0.078915,63356.0,63355.0,0.078916]
[1727114323525,0.078915,63356.0,63355.0,0.18462213]
[1727114323725,0.078915,63356.0,63355.0,0.20929948]
[1727114324230,0.078915,63356.0,63355.0,0.30373416]
[1727114325624,0.088915,63356.0,63355.0,0.30373416]
[1727114325921,0.088915,63356.0,63355.0,0.27905681]
[1727114326534,0.096915,63356.0,63355.0,0.28005681]
[1727114327217,0.018,63356.0,63355.0,0.28005681]
[1727114327523,0.018,63356.0,63355.0,0.29562213]
[1727114327723,0.096915,63356.0,63355.0,0.27980275]
[1727114329018,0.206915,63356.0,63355.0,0.27980275]
[1727114329325,0.206915,63356.0,63355.0,0.18536807]
[1727114329831,0.28583,63356.0,63355.0,0.10645207]
[1727114330132,0.28583,63356.0,63355.0,0.001]
[1727114333230,0.28583,63356.0,63355.0,0.07966685]
[1727114333436,0.28583,63356.0,63355.0,0.001]
[1727114333918,0.17583,63356.0,63355.0,0.001]
[1727114334120,0.096915,63356.0,63355.0,0.18553854]
[1727114335436,0.22313418,63356.0,63355.0,0.079916]
[1727114335735,0.32608519,63356.0,63355.0,0.079916]
[1727114335935,0.19986601,63356.0,63355.0,0.079916]
[1727114336728,0.32608519,63356.0,63355.0,0.079916]
[1727114336935,0.19986601,63356.0,63355.0,0.079916]
[1727114337239,0.32608519,63356.0,63355.0,0.079916]
[1727114338632,0.32611367,63356.0,63355.0,0.079916]
[1727114339433,0.32611429,63356.0,63355.0,0.079916]
[1727114339734,0.19986601,63356.0,63355.0,0.079916]
[1727114341734,0.12095101,63356.0,63355.0,0.079916]
[1727114342038,0.19986601,63356.0,63355.0,0.079916]
[1727114343647,0.096915,63356.0,63355.0,0.18547475]
[1727114344330,0.096915,63356.0,63355.0,0.10655875]
[1727114344331,0.17583,63356.0,63355.0,0.10655875]
[1727114346832,0.17583,63356.0,63355.0,0.18547475]
[1727114348337,0.096915,63356.0,63355.0,0.18547475]
[1727114348539,0.018,63356.0,63355.0,0.18547475]
[1727114348838,0.018,63356.0,63355.0,0.38350296]
[1727114349836,0.018,63356.0,63355.0,0.28906828]
[1727114350532,0.018,63356.0,63355.0,0.18350953]
[1727114350736,0.018,63356.0,63355.0,0.158832]
[1727114350926,0.05977221,63356.0,63355.0,0.18350892]
[1727114351132,0.12133774,63356.0,63355.0,0.18350892]
[1727114351942,0.19003148,63356.0,63355.0,0.26242492]
[1727114352143,0.07956553,63356.0,63355.0,0.26242492]
[1727114353749,0.07956553,63356.0,63355.0,0.26242361]
[1727114355236,0.07969823,63356.0,63355.0,0.26242361]
[1727114356044,0.07969823,63356.0,63355.0,0.237748]
[1727114358551,0.12994798,63361.0,63360.0,0.07891]
[1727114358746,0.12624798,63361.0,63360.0,0.18419247]
[1727114359743,0.14024798,63361.0,63360.0,0.26298208]
[1727114360049,0.014,63361.0,63360.0,0.34158333]
[1727114360248,0.014,63361.0,63360.0,0.26298208]
[1727114360435,0.014,63361.0,63360.0,0.34156961]
[1727114361349,0.015,63361.0,63360.0,0.15882]
[1727114361536,0.015,63361.0,63360.0,0.26393176]
[1727114365451,0.05442576,63362.0,63361.0,0.078908]
[1727114365648,0.05442576,63362.0,63361.0,0.26257882]
[1727114368251,0.05642576,63362.0,63361.0,0.26457882]
[1727114369452,0.05642576,63362.0,63361.0,0.26425103]
[1727114372350,0.13533276,63362.0,63361.0,0.18534303]
[1727114372853,0.21423976,63362.0,63361.0,0.002]
[1727114373043,0.21423976,63362.0,63361.0,0.0648685]
[1727114373245,1.28771976,63362.0,63361.0,0.002]
[1727114373443,0.078912,63359.0,63346.0,0.07782312]
[1727114373648,0.11,63350.0,63349.0,0.439723]
[1727114373849,0.21405344,63350.0,63349.0,0.46440154]
[1727114374151,0.26249721,63350.0,63349.0,0.46440154]
[1727114374742,0.26249721,63350.0,63349.0,0.46440156]
[1727114375241,0.43602818,63350.0,63349.0,0.46440172]
[1727114375451,0.32602818,63350.0,63349.0,0.46440172]
[1727114377345,0.32802818,63350.0,63349.0,0.46440172]
[1727114378250,0.15449721,63350.0,63349.0,0.46440172]
[1727114379046,0.15449721,63350.0,63349.0,0.439723]
[1727114380059,0.23341921,63350.0,63349.0,0.439723]
[1727114380365,0.5643144,63350.0,63349.0,0.439723]
[1727114380560,0.363244,63350.0,63349.0,0.54549112]
[1727114383851,0.363244,63350.0,63349.0,0.54553003]
[1727114386056,0.363244,63350.0,63349.0,0.57020998]
[1727114386852,0.363244,63350.0,63349.0,0.54553003]
[1727114387659,0.363244,63350.0,63349.0,0.57020998]
[1727114388163,0.363244,63350.0,63349.0,0.54553003]
[1727114388553,0.363244,63350.0,63349.0,0.18473003]
[1727114388758,0.363244,63350.0,63349.0,0.18471131]
[1727114389071,0.363244,63350.0,63349.0,0.0785576]
[1727114389271,0.078923,63349.0,63348.0,0.1574816]
[1727114389569,0.078923,63349.0,63348.0,0.26330332]
[1727114389766,0.078923,63349.0,63348.0,0.1574816]
[1727114389959,0.157846,63349.0,63348.0,0.078924]
[1727114390464,0.158846,63349.0,63348.0,0.078924]
[1727114390664,0.158846,63349.0,63345.0,0.3608]
[1727114390665,0.078926,63347.0,63346.0,0.0785576]
[1727114390869,0.188926,63347.0,63346.0,0.18446803]
[1727114391360,0.188926,63347.0,63346.0,0.18445168]
[1727114391958,0.188926,63347.0,63346.0,0.18444314]
[1727114392262,0.188926,63347.0,63346.0,0.26437014]
[1727114392458,0.267852,63347.0,63346.0,0.26437014]
[1727114392760,0.268852,63347.0,63346.0,0.18544314]
[1727114393172,0.268852,63347.0,63346.0,0.07953271]
[1727114394966,0.189926,63347.0,63346.0,0.15845971]
[1727114396684,0.001,63347.0,63346.0,0.37471331]
[1727114396866,0.0037,63354.0,63352.0,0.078918]
[1727114396867,0.078919,63353.0,63352.0,0.078918]
[1727114397061,0.0037,63354.0,63346.0,0.22334732]
[1727114397062,0.078926,63347.0,63346.0,0.22334732]
[1727114397367,0.11,63349.0,63348.0,0.078925]
[1727114397567,0.11,63349.0,63348.0,0.18458239]
[1727114398066,0.11,63349.0,63348.0,0.26310973]
[1727114398254,0.188923,63349.0,63348.0,0.18458239]
[1727114398460,0.188923,63349.0,63348.0,0.26312004]
[1727114398862,0.189923,63349.0,63348.0,0.26312004]
[1727114399261,0.189923,63349.0,63348.0,0.18458239]
[1727114406279,0.111,63349.0,63348.0,0.18486905]
[1727114406478,0.001,63349.0,63348.0,0.18486905]
[1727114406781,0.001,63349.0,63348.0,0.23156905]
[1727114407081,0.001,63349.0,63348.0,0.32589237]
[1727114407273,0.079923,63349.0,63348.0,0.32589237]
[1727114407780,0.189923,63349.0,63348.0,0.32589237]
[1727114409088,0.111,63349.0,63348.0,0.32589237]
[1727114409281,0.001,63349.0,63348.0,0.40481737]
[1727114409587,0.001,63349.0,63348.0,0.62556512]
[1727114409879,0.001,63349.0,63348.0,0.65024402]
[1727114410274,0.078912,63359.0,63358.0,0.078912]
[1727114411680,0.081912,63359.0,63358.0,0.080912]
[1727114412576,0.003,63359.0,63358.0,0.18644601]
[1727114413178,0.003,63359.0,63358.0,0.37535801]
[1727114413379,0.003,63359.0,63358.0,0.42325801]
[1727114413574,0.003,63359.0,63358.0,0.5486413]
[1727114413884,0.003,63359.0,63358.0,0.23434601]
[1727114416596,0.003,63359.0,63358.0,0.59514601]
[1727114420390,0.003,63359.0,63358.0,0.31280359]
[1727114420987,0.270822,63359.0,63358.0,0.002]
[1727114421191,0.349733,63359.0,63358.0,0.002]
[1727114422393,0.270822,63359.0,63358.0,0.002]
[1727114428195,0.160822,63359.0,63358.0,0.002]
[1727114428391,0.270822,63359.0,63358.0,0.002]
[1727114429086,0.003,63359.0,63358.0,0.002]
[1727114429283,0.081911,63359.0,63358.0,0.080912]
[1727114432095,0.081911,63359.0,63358.0,0.12799989]
[1727114432096,0.003,63359.0,63358.0,0.12799989]
[1727114432601,0.003,63359.0,63358.0,0.080912]
[1727114433988,0.003,63359.0,63358.0,0.190912]
[1727114434289,0.003,63359.0,63358.0,0.73604176]
[1727114434496,0.0037,63370.0,63358.0,0.69700598]
[1727114434799,0.078898,63370.0,63369.0,0.078896]
[1727114435600,0.36316797,63372.0,63371.0,0.078896]
[1727114435802,0.00236797,63372.0,63371.0,0.188896]
[1727114436001,0.00236797,63372.0,63371.0,0.37254175]
[1727114436192,0.0037,63380.0,63379.0,0.157772]
[1727114436495,0.078876,63388.0,63387.0,0.078876]
[1727114436692,0.3608,63404.0,63387.0,0.542353]
[1727114436888,0.078859,63401.0,63398.0,0.04699592]
[1727114437087,0.078859,63401.0,63388.0,0.02466319]
[1727114437088,0.078865,63396.0,63395.0,0.04699929]
[1727114437293,0.078867,63395.0,63393.0,0.04699929]
[1727114437495,0.16,63394.0,63393.0,0.04699929]
[1727114438310,0.16,63394.0,63387.0,0.54715942]
[1727114438311,0.078874,63389.0,63387.0,0.00336642]
[1727114438489,0.16,63388.0,63387.0,0.00336642]